fUSD/lending_fUSD_20251222
["ID","MTS","AMOUNT","RATE_DAILY","PERIOD"]
[399514485,1766423443937,-643.12323301,0.000169,2]
[399514486,1766423443946,-3182.64322733,0.000169,2]
[399514487,1766423443955,-211.71595035,0.000169,2]
[399514488,1766423443965,-383.86135003,0.000169,2]
[399514489,1766423443974,-1484.46368982,0.000169,2]
[399514490,1766423443983,-500.0,0.000169,2]
[399514491,1766423443992,-500.0,0.000169,2]
[399514492,1766423444001,-500.0,0.000169,2]
[399514493,1766423444010,-500.0,0.000169,2]
[399514494,1766423444020,-500.0,0.000169,2]
[399514495,1766423444029,-500.0,0.000169,2]
[399514496,1766423444038,-500.0,0.000169,2]
[399514497,1766423444047,-500.0,0.000169,2]
[399514498,1766423444056,-500.0,0.000169,2]
[399514499,1766423444066,-500.0,0.000169,2]
[399514500,1766423444075,-500.0,0.000169,2]
[399514501,1766423444084,-500.0,0.000169,2]
[399514502,1766423444093,-500.0,0.000169,2]
[399514503,1766423444103,-500.0,0.000169,2]
[399514504,1766423444112,-500.0,0.000169,2]
[399514505,1766423444122,-500.0,0.000169,2]
[399514506,1766423444132,-500.0,0.000169,2]
[399514507,1766423444141,-500.0,0.000169,2]
[399514508,1766423444151,-500.0,0.000169,2]
[399514509,1766423444160,-500.0,0.000169,2]
[399514510,1766423444170,-500.0,0.000169,2]
[399514511,1766423444179,-500.0,0.000169,2]
[399514512,1766423444189,-500.0,0.000169,2]
[399514513,1766423444198,-500.0,0.000169,2]
[399514514,1766423444208,-500.0,0.000169,2]
[399514515,1766423444218,-415.66004447,0.000169,2]
[399514516,1766423444227,-197.68289653,0.00016908,2]
[399514517,1766423444237,-1250.68,0.00016922,2]
[399514518,1766423444246,-10000.01,0.00016922,2]
[399514519,1766423444256,-457.0,0.00016959,2]
[399514520,1766423444266,-500.0,0.00016972,2]
[399514521,1766423444275,-500.0,0.00016972,2]
[399514522,1766423444284,-500.0,0.00016972,2]
[399514523,1766423444293,-558.96,0.00016972,2]
[399514524,1766423444303,-500.0,0.00016972,2]
[399514525,1766423444313,-500.0,0.00016973,2]
[399514526,1766423444323,-500.0,0.00016973,2]
[399514527,1766423444332,-189.51040259,0.00016973,2]
[399514528,1766423444341,-500.0,0.00016973,2]
[399514529,1766423444350,-500.0,0.00016973,2]
[399514530,1766423444359,-500.0,0.00016973,2]
[399514531,1766423444368,-500.0,0.00016973,2]
[399514532,1766423444377,-500.0,0.00016973,2]
[399514533,1766423444386,-187.58612974,0.00016973,2]
[399514534,1766423444396,-500.0,0.00016973,2]
[399514535,1766423444405,-500.0,0.00016973,2]
[399514536,1766423444414,-500.0,0.00016973,2]
[399514537,1766423444423,-500.0,0.00016973,2]
[399514538,1766423444433,-500.0,0.00016973,2]
[399514539,1766423444444,-500.0,0.00016973,2]
[399514540,1766423444453,-500.0,0.00016973,2]
[399514541,1766423444462,-500.0,0.00016973,2]
[399514542,1766423444470,-500.0,0.00016973,2]
[399514543,1766423444480,-500.0,0.00016973,2]
[399514544,1766423444489,-500.0,0.00016973,2]
[399514545,1766423444498,-500.0,0.00016973,2]
[399514546,1766423444507,-500.0,0.00016973,2]
[399514547,1766423444517,-500.0,0.00016973,2]
[399514548,1766423444527,-577.70558009,0.00016973,2]
[399514549,1766423444536,-500.0,0.00016973,2]
[399514550,1766423444549,-500.45563157,0.00016973,2]
[399514551,1766423444558,-500.0,0.00016973,2]
[399514552,1766423444567,-166.96828513,0.00016973,2]
[399514553,1766423444577,-500.0,0.00016973,2]
[399514554,1766423444590,-500.0,0.00016973,2]
[399514555,1766423444600,-500.0,0.00016973,2]
[399514556,1766423444609,-500.0,0.00016973,2]
[399514557,1766423444619,-500.0,0.00016973,2]
[399514558,1766423444629,-500.16141079,0.00016973,2]
[399514559,1766423444639,-523.16788729,0.00016973,2]
[399514560,1766423444649,-468.6988227,0.00016973,2]
[399514561,1766423444658,-500.0,0.00016973,2]
[399514562,1766423444668,-500.0,0.00016973,2]
[399514563,1766423444677,-500.0,0.00016973,2]
[399514564,1766423444688,-500.0,0.00016973,2]
[399514565,1766423444698,-500.0,0.00016973,2]
[399514566,1766423444708,-500.0,0.00016973,2]
[399514567,1766423444717,-500.0,0.00016973,2]
[399514568,1766423444727,-500.0,0.00016973,2]
[399514569,1766423444736,-500.0,0.00016973,2]
[399514570,1766423444746,-344.75321982,0.00016973,2]
[399514571,1766423444757,-500.19873097,0.00016973,2]
[399514572,1766423444767,-220.3394429,0.00016973,2]
[399514573,1766423444777,-161.12986217,0.00016973,2]
[399514574,1766423444787,-500.0,0.00016973,2]
[399514575,1766423444796,-150.0,0.00016973,2]
[399514576,1766423444808,-1689.8,0.00016986,2]
[399514577,1766423444818,-600.0,0.00016986,2]
[399514578,1766423444829,-243.0,0.00016987,2]
[399514579,1766423444839,-273.54560927,0.0001699,2]
[399514580,1766423444848,-273.54560927,0.0001699,2]
[399514581,1766423444857,-683.1,0.00016998,2]
[399514582,1766423444867,-60190.0222938,0.00016999,2]
[399514583,1766423444877,-500.0,0.00016999,2]
[399514584,1766423444886,-500.0,0.00016999,2]
[399514585,1766423444896,-500.0,0.00016999,2]
[399514586,1766423444905,-500.0,0.00016999,2]
[399514587,1766423444914,-284.04964498,0.00016999,2]
[399514588,1766423444924,-300.0,0.00016999,2]
[399514589,1766423444934,-300.0,0.00016999,2]
[399514590,1766423444943,-300.0,0.00016999,2]
[399514591,1766423444953,-666.0,0.00016999,2]
[399514592,1766423444964,-7128.7518077,0.00016999,2]
[399514593,1766423444973,-300.0,0.00016999,2]
[399514594,1766423444982,-683.1,0.00016999,2]
[399514595,1766423444991,-683.1,0.00016999,2]
[399514596,1766423445001,-683.1,0.00016999,2]
[399514597,1766423445210,-683.1,0.00016999,2]
[399514598,1766423445223,-683.1,0.00016999,2]
[399514599,1766423445233,-683.1,0.00016999,2]
[399514600,1766423445242,-683.1,0.00016999,2]
[399514601,1766423445251,-683.1,0.00016999,2]
[399514602,1766423445261,-683.1,0.00016999,2]
[399514603,1766423445270,-683.1,0.00016999,2]
[399514604,1766423445280,-683.1,0.00016999,2]
[399514605,1766423445289,-683.1,0.00016999,2]
[399514606,1766423445298,-683.1,0.00016999,2]
[399514607,1766423445307,-683.1,0.00016999,2]
[399514608,1766423445317,-683.1,0.00016999,2]
[399514609,1766423445327,-683.24593767,0.00016999,2]
[399514610,1766423445336,-500.0,0.00016999,2]
[399514611,1766423445346,-511.74808799,0.00016999,2]
[399514612,1766423445355,-547.3467704,0.00016999,2]
[399514613,1766423445364,-1209.1733988,0.00016999,2]
[399514614,1766423445374,-500.0,0.00016999,2]
[399514615,1766423445383,-518.50192951,0.00016999,2]
[399514616,1766423445391,-4269.0377876,0.00016999,2]
[399514617,1766423445400,-9630.8479587,0.00016999,2]
[399514618,1766423445410,-300.0,0.00016999,2]
[399514619,1766423445420,-666.0,0.00016999,2]
[399514620,1766423445429,-558.96,0.00016999,2]
[399514621,1766423445439,-558.96,0.00016999,2]
[399514622,1766423445448,-558.96,0.00016999,2]
[399514623,1766423445458,-558.96,0.00016999,2]
[399514624,1766423445467,-558.96,0.00016999,2]
[399514625,1766423445476,-558.96,0.00016999,2]
[399514626,1766423445485,-558.96,0.00016999,2]
[399514627,1766423445494,-558.96,0.00016999,2]
[399514628,1766423445503,-558.96,0.00016999,2]
[399514629,1766423445513,-558.96,0.00016999,2]
[399514630,1766423445523,-558.96,0.00016999,2]
[399514631,1766423445531,-558.96,0.00016999,2]
[399514632,1766423445543,-558.96,0.00016999,2]
[399514633,1766423445553,-558.96,0.00016999,2]
[399514634,1766423445562,-558.96,0.00016999,2]
[399514635,1766423445572,-558.96,0.00016999,2]
[399514636,1766423445583,-558.96,0.00016999,2]
[399514637,1766423445593,-558.96,0.00016999,2]
[399514639,1766423445604,-559.16739405,0.00016999,2]
[399514640,1766423445614,-500.0,0.00016999,2]
[399514642,1766423445624,-500.0,0.00016999,2]
[399514643,1766423445633,-500.0,0.00016999,2]
[399514645,1766423445643,-508.36812857,0.00016999,2]
[399514647,1766423445652,-1360.8010974,0.00016999,2]
[399514648,1766423445661,-500.0,0.00016999,2]
[399514649,1766423445671,-500.0,0.00016999,2]
[399514650,1766423445680,-500.0,0.00016999,2]
[399514651,1766423445689,-500.0,0.00016999,2]
[399514652,1766423445699,-508.14814092,0.00016999,2]
[399514653,1766423445708,-8920.8698098,0.00016999,2]
[399514654,1766423445718,-500.0,0.00016999,2]
[399514655,1766423445728,-500.0,0.00016999,2]
[399514656,1766423445737,-500.0,0.00016999,2]
[399514657,1766423445747,-500.0,0.00016999,2]
[399514658,1766423445756,-500.0,0.00016999,2]
[399514659,1766423445766,-500.0,0.00016999,2]
[399514660,1766423445775,-500.0,0.00016999,2]
[399514661,1766423445784,-500.0,0.00016999,2]
[399514662,1766423445794,-666.0,0.00016999,2]
[399514663,1766423445803,-240960.3630534,0.00016999,2]
[399514664,1766423445813,-945.6679639,0.00016999,2]
[399514665,1766423445822,-300.0,0.00016999,2]
[399514666,1766423445832,-211.45726053,0.00017,2]
[399514667,1766423445841,-241.66544061,0.00017,2]
[399514668,1766423445851,-377.22464869,0.00017,2]
[399514669,1766423445860,-150.0,0.00017,2]
[399514670,1766423445869,-6111580.78537928,0.00017,2]
[399514671,1766423445912,-911.0,0.00016324,2]
[399514672,1766423445923,-63698.79429862,0.00017,2]
[399514673,1766423445934,-8566.64481767,0.00017,2]
[399514674,1766423445946,-1446.41958768,0.00017,2]
[399514675,1766423445958,-598.54673248,0.00017,2]
[399514676,1766423445975,-737.66340702,0.00017,2]
[399514677,1766423445987,-839.15,0.00017,2]
[399514678,1766423446004,-3488.00000003,0.00017,2]
[399514679,1766423446016,-307.54133797,0.00017,2]
[399514680,1766423446027,-2055.24552233,0.00017,2]
[399514681,1766423446039,-356.31084987,0.00017,2]
[399514682,1766423446051,-11292.83434283,0.00017,2]
[399514683,1766423446064,-9975.43,0.00017,2]
[399514684,1766423446082,-4156.19990002,0.00017,2]
[399514685,1766423446105,-5481.18,0.00017,2]
[399514686,1766423446321,-293.0,0.00014283,2]
[399514688,1766423446331,-5976.80043539,0.00015799,2]
[399514690,1766423446341,-15870.14981065,0.00017,2]
[399514691,1766423446373,-746962.67769379,0.00017,2]
[399514693,1766423446385,-11245.16949822,0.00017,2]
[399514695,1766423446396,-49666.72258952,0.00017,2]
[399514696,1766423446407,-379.46485639,0.00017,2]
[399514697,1766423446943,-749.96891245,0.00015819,2]
[399514698,1766423571041,244.71,7.729e-05,2]
[399514699,1766423571240,244.71,8.136e-05,2]
[399514700,1766423571644,244.71,8.542e-05,2]
[399514701,1766423571842,244.71,8.949e-05,2]
[399514702,1766423572059,244.71,9.356e-05,2]
[399514703,1766423572292,244.71,9.763e-05,2]
[399514741,1766424631951,-233.0,0.00010169,2]
[399514742,1766424631961,-244.71,0.00010169,2]
[399514743,1766424631970,-244.71,0.00010576,2]
[399514744,1766424631980,-244.71,0.00010983,2]
[399514745,1766424631990,-300.0,0.00011186,2]
[399514746,1766424631999,-244.71,0.0001139,2]
[399514747,1766424632009,-244.71,0.00011796,2]
[399514748,1766424632018,-961.5,0.00011941,2]
[399514749,1766424632028,-1048.1,0.00011951,2]
[399514750,1766424632038,-244.0,0.00011997,2]
[399514751,1766424632047,-889.0,0.00012022,2]
[399514752,1766424632057,-150.0,0.00012077,2]
[399514753,1766424632067,-192.0,0.00012115,2]
[399514754,1766424632076,-279.0,0.00012139,2]
[399514755,1766424632085,-326.0,0.00012164,2]
[399514756,1766424632095,-1200.0,0.00012193,2]
[399514757,1766424632104,-1474.0,0.00012194,2]
[399514758,1766424632114,-244.71,0.00012203,2]
[399514759,1766424632123,-172.34172622,0.00012219,2]
[399514760,1766424632135,-1250.65827378,0.00012219,2]
[399514761,1766424632144,-1588.17,0.00012223,2]
[399514762,1766424632153,-8816.28,0.00012325,2]
[399514763,1766424632162,-992.0758423,0.00012366,2]
[399514764,1766424632172,-1190.53,0.00012427,2]
[399514765,1766424632181,-263.99,0.00012434,2]
[399514766,1766424632190,-150.0,0.00012434,2]
[399514767,1766424632199,-1387.0,0.00012442,2]
[399514768,1766424632208,-1734.08,0.00012459,2]
[399514769,1766424632217,-702.0,0.0001246,2]
[399514770,1766424632227,-1460.0,0.00012485,2]
[399514771,1766424632236,-498.0,0.00012554,2]
[399514772,1766424632246,-244.71,0.0001261,2]
[399514773,1766424632255,-500.0,0.00012613,2]
[399514774,1766424632264,-874.0,0.00012647,2]
[399514775,1766424632273,-200.0,0.00012796,2]
[399514776,1766424632283,-556.0,0.00012936,2]
[399514777,1766424632293,-244.71,0.00013017,2]
[399514778,1766424632303,-263.99,0.00013125,2]
[399514779,1766424632312,-1441.28015407,0.00013174,2]
[399514780,1766424632344,-158.71984593,0.00013174,2]
[399514781,1766424632354,-245.26180136,0.00013216,2]
[399514782,1766424632364,-500.19179488,0.00013216,2]
[399514783,1766424632373,-500.0,0.00013216,2]
[399514784,1766424632383,-500.0,0.00013216,2]
[399514785,1766424632392,-300.24686775,0.00013216,2]
[399514786,1766424632404,-187.14698555,0.00013216,2]
[399514787,1766424632413,-165.2659837,0.00013216,2]
[399514788,1766424632422,-1122.03080152,0.00013217,2]
[399514789,1766424632451,-271.00000022,0.00013217,2]
[399514823,1766424637970,-871.643,0.00013217,2]
[399514824,1766424637982,-25484.07619826,0.00013217,2]
[399514825,1766424637991,-1680.0,0.00013412,2]
[399514826,1766424638001,-244.71,0.00013424,2]
[399514827,1766424638011,-151.33,0.00013434,2]
[399514828,1766424638021,-250.0,0.00013437,2]
[399514829,1766424638031,-255.0,0.00013528,2]
[399514830,1766424638040,-942.25570722,0.00013598,2]
[399514831,1766424638055,-249.45942711,0.00013598,2]
[399514832,1766424638065,-7070.00693659,0.00013598,2]
[399514833,1766424638075,-2189.73786509,0.00013598,2]
[399514834,1766424638084,-346.53172743,0.00013598,2]
[399514835,1766424638094,-200.0,0.00013636,2]
[399514836,1766424638103,-200.0,0.00013636,2]
[399514837,1766424638113,-500.0,0.00013636,2]
[399514838,1766424638123,-500.0,0.00013636,2]
[399514839,1766424638133,-500.0,0.00013636,2]
[399514840,1766424638143,-500.0,0.00013636,2]
[399514841,1766424638152,-500.0,0.00013636,2]
[399514842,1766424638162,-500.0,0.00013636,2]
[399514843,1766424638172,-500.0,0.00013636,2]
[399514844,1766424638182,-151.0,0.00013636,2]
[399514845,1766424638191,-151.0,0.00013636,2]
[399514846,1766424638201,-500.0,0.00013636,2]
[399514847,1766424638212,-151.0,0.00013636,2]
[399514848,1766424638222,-500.0,0.00013636,2]
[399514849,1766424638232,-151.0,0.00013636,2]
[399514850,1766424638242,-500.0,0.00013636,2]
[399514852,1766424638255,-151.0,0.00013636,2]
[399514854,1766424638265,-500.0,0.00013636,2]
[399514856,1766424638275,-151.0,0.00013636,2]
[399514858,1766424638286,-200.0,0.00013636,2]
[399514861,1766424638296,-151.0,0.00013636,2]
[399514863,1766424638305,-151.0,0.00013636,2]
[399514865,1766424638315,-151.0,0.00013636,2]
[399514867,1766424638325,-151.0,0.00013636,2]
[399514868,1766424638335,-151.0,0.00013636,2]
[399514869,1766424638345,-500.0,0.00013698,2]
[399514870,1766424638355,-500.0,0.00013698,2]
[399514871,1766424638365,-500.0,0.00013698,2]
[399514872,1766424638375,-511.62107373,0.00013698,2]
[399514873,1766424638385,-500.0,0.00013698,2]
[399514874,1766424638394,-572.01503076,0.00013698,2]
[399514875,1766424638404,-500.0,0.00013698,2]
[399514876,1766424638414,-500.0,0.00013698,2]
[399514877,1766424638424,-500.0,0.00013698,2]
[399514878,1766424638434,-500.0,0.00013698,2]
[399514879,1766424638447,-500.0,0.00013698,2]
[399514880,1766424638457,-500.0,0.00013698,2]
[399514881,1766424638467,-518.24028953,0.00013698,2]
[399514882,1766424638477,-500.0,0.00013698,2]
[399514883,1766424638486,-500.0,0.00013698,2]
[399514884,1766424638496,-500.0,0.00013698,2]
[399514885,1766424638506,-500.0,0.00013698,2]
[399514886,1766424638517,-500.0,0.00013698,2]
[399514887,1766424638527,-500.0,0.00013698,2]
[399514888,1766424638537,-500.0,0.00013698,2]
[399514889,1766424638548,-500.0,0.00013698,2]
[399514890,1766424638558,-500.0,0.00013698,2]
[399514891,1766424638568,-500.0,0.00013698,2]
[399514892,1766424638578,-500.0,0.00013698,2]
[399514893,1766424638589,-500.0,0.00013698,2]
[399514894,1766424638599,-500.0,0.00013698,2]
[399514895,1766424638608,-500.0,0.00013698,2]
[399514896,1766424638619,-500.0,0.00013698,2]
[399514897,1766424638628,-500.0,0.00013698,2]
[399514898,1766424638640,-500.0,0.00013698,2]
[399514899,1766424638651,-500.0,0.00013698,2]
[399514900,1766424638660,-416.46,0.00013698,2]
[399514901,1766424638669,-500.0,0.00013698,2]
[399514902,1766424638679,-500.0,0.00013698,2]
[399514903,1766424638689,-500.0,0.00013698,2]
[399514904,1766424638699,-500.0,0.00013698,2]
[399514905,1766424638708,-507.04191621,0.00013698,2]
[399514906,1766424638717,-500.0,0.00013698,2]
[399514907,1766424638727,-526.61729776,0.00013698,2]
[399514908,1766424638737,-862.86,0.00013698,2]
[399514909,1766424638746,-862.86,0.00013698,2]
[399514910,1766424638756,-862.86,0.00013698,2]
[399514911,1766424638765,-862.86,0.00013698,2]
[399514912,1766424638776,-500.0,0.00013698,2]
[399514913,1766424638785,-500.0,0.00013698,2]
[399514914,1766424638795,-500.0,0.00013698,2]
[399514915,1766424638804,-500.0,0.00013698,2]
[399514916,1766424638814,-522.94551231,0.00013698,2]
[399514917,1766424638823,-200.0,0.00013699,2]
[399514918,1766424638833,-500.0,0.00013699,2]
[399514919,1766424638842,-500.0,0.00013699,2]
[399514920,1766424638852,-500.0,0.00013699,2]
[399514921,1766424638861,-500.0,0.00013699,2]
[399514922,1766424638874,-500.0,0.00013699,2]
[399514923,1766424638884,-295.6947038,0.00013699,2]
[399514924,1766424638894,-1000.0,0.00013742,2]
[399514925,1766424638903,-500.0,0.00013744,2]
[399514926,1766424638914,-500.0,0.00013744,2]
[399514927,1766424638923,-500.0,0.00013744,2]
[399514928,1766424638933,-500.0,0.00013744,2]
[399514929,1766424638944,-500.0,0.00013744,2]
[399514930,1766424638954,-500.0,0.00013744,2]
[399514931,1766424638963,-500.0,0.00013744,2]
[399514932,1766424638973,-550.58814237,0.00013744,2]
[399514933,1766424638983,-500.0,0.00013744,2]
[399514934,1766424638992,-500.0,0.00013744,2]
[399514935,1766424639001,-500.0,0.00013744,2]
[399514936,1766424639011,-500.0,0.00013744,2]
[399514937,1766424639028,-500.0,0.00013744,2]
[399514938,1766424639040,-500.0,0.00013744,2]
[399514939,1766424639050,-500.0,0.00013744,2]
[399514940,1766424639059,-500.0,0.00013744,2]
[399514941,1766424639068,-500.0,0.00013744,2]
[399514942,1766424639079,-500.0,0.00013744,2]
[399514943,1766424639089,-500.0,0.00013744,2]
[399514944,1766424639098,-500.0,0.00013744,2]
[399514945,1766424639110,-500.0,0.00013744,2]
[399514946,1766424639121,-500.0,0.00013744,2]
[399514947,1766424639130,-500.0,0.00013744,2]
[399514948,1766424639140,-500.0,0.00013744,2]
[399514949,1766424639151,-263.99,0.00013815,2]
[399514950,1766424639160,-244.71,0.0001383,2]
[399514951,1766424639170,-7070.00693658,0.00013965,2]
[399514952,1766424639181,-2189.73786502,0.00013965,2]
[399514953,1766424639191,-200.0,0.00014184,2]
[399514954,1766424639200,-500.0,0.00014184,2]
[399514955,1766424639210,-200.0,0.00014184,2]
[399514956,1766424639219,-2622.0,0.000142,3]
[399514957,1766424639229,-244.71,0.00014237,2]
[399514958,1766424639240,-500.0,0.000143,2]
[399514959,1766424639250,-500.0,0.000143,2]
[399514960,1766424639260,-500.0,0.000143,2]
[399514961,1766424639271,-168.65037374,0.000143,2]
[399514962,1766424639282,-500.0,0.000143,2]
[399514963,1766424639292,-500.0,0.000143,2]
[399514964,1766424639302,-500.0,0.000143,2]
[399514965,1766424639311,-7070.00693658,0.00014332,2]
[399514966,1766424639320,-2189.73786502,0.00014332,2]
[399514967,1766424639330,-346.53172737,0.0001445,2]
[399514968,1766424639340,-263.99,0.00014506,2]
[399514969,1766424639350,-244.71,0.00014644,2]
[399514970,1766424639359,-7070.00693658,0.00014699,2]
[399514971,1766424639369,-2189.73786502,0.00014699,2]
[399514972,1766424639378,-433.0,0.00014722,2]
[399514973,1766424639388,-381.66544226,0.00014731,2]
[399514974,1766424639397,-200.0,0.00014732,2]
[399514975,1766424639407,-500.0,0.00014732,2]
[399514976,1766424639416,-200.0,0.00014732,2]
[399514977,1766424639427,-2351.0,0.00014754,2]
[399514978,1766424639438,-1600.0,0.00014821,2]
[399514979,1766424639447,-1000.0,0.00014848,2]
[399514980,1766424639457,-1000.0,0.00014848,2]
[399514981,1766424639466,-1000.0,0.00014848,2]
[399514982,1766424639477,-244.71,0.00015051,2]
[399514983,1766424639487,-7070.00693658,0.00015066,2]
[399514984,1766424639497,-2189.73786502,0.00015066,2]
[399514985,1766424639506,-263.99,0.00015197,2]
[399514986,1766424639517,-5525.0,0.000152,5]
[399514987,1766424639528,-200.0,0.0001528,2]
[399514988,1766424639538,-500.0,0.0001528,2]
[399514989,1766424639547,-200.0,0.0001528,2]
[399514990,1766424639875,-322.6107,0.00015295,2]
[399514991,1766424639885,-151.0,0.00015295,2]
[399514992,1766424639895,-500.0,0.00015295,2]
[399514993,1766424639904,-500.0,0.00015295,2]
[399514994,1766424639915,-500.0,0.00015295,2]
[399514995,1766424639927,-500.0,0.00015295,2]
[399514997,1766424639938,-500.0,0.00015295,2]
[399514999,1766424639948,-500.0,0.00015295,2]
[399515000,1766424639958,-1108.0,0.00015295,2]
[399515001,1766424639969,-500.0,0.00015295,2]
[399515002,1766424639978,-500.0,0.00015295,2]
[399515003,1766424639988,-500.0,0.00015295,2]
[399515004,1766424639997,-500.0,0.00015295,2]
[399515005,1766424640007,-500.0,0.00015295,2]
[399515006,1766424640016,-179.68691707,0.00015295,2]
[399515007,1766424640025,-500.0,0.00015295,2]
[399515008,1766424640034,-500.0,0.00015295,2]
[399515009,1766424640043,-454.88526239,0.00015295,2]
[399515010,1766424640052,-500.0,0.00015295,2]
[399515011,1766424640061,-500.0,0.00015295,2]
[399515012,1766424640070,-500.0,0.00015295,2]
[399515013,1766424640079,-500.0,0.00015295,2]
[399515014,1766424640089,-500.0,0.00015295,2]
[399515015,1766424640098,-500.0,0.00015295,2]
[399515016,1766424640108,-500.0,0.00015295,2]
[399515017,1766424640117,-500.0,0.00015295,2]
[399515018,1766424640126,-500.0,0.00015295,2]
[399515019,1766424640135,-500.0,0.00015295,2]
[399515020,1766424640145,-500.0,0.00015295,2]
[399515021,1766424640154,-500.0,0.00015295,2]
[399515022,1766424640163,-500.0,0.00015295,2]
[399515023,1766424640172,-500.0,0.00015295,2]
[399515024,1766424640182,-500.0,0.00015295,2]
[399515025,1766424640191,-500.0,0.00015295,2]
[399515026,1766424640200,-500.0,0.00015295,2]
[399515027,1766424640210,-500.0,0.00015295,2]
[399515028,1766424640220,-500.0,0.00015295,2]
[399515029,1766424640229,-500.0,0.00015295,2]
[399515030,1766424640239,-200.0,0.00015295,2]
[399515031,1766424640248,-500.0,0.00015295,2]
[399515032,1766424640261,-207.4,0.00015295,2]
[399515033,1766424640270,-500.0,0.00015295,2]
[399515034,1766424640279,-215.0738,0.00015295,2]
[399515035,1766424640289,-500.0,0.00015295,2]
[399515036,1766424640298,-223.0315306,0.00015295,2]
[399515037,1766424640307,-500.0,0.00015295,2]
[399515038,1766424640316,-344.53897706,0.00015295,2]
[399515039,1766424640324,-500.0,0.00015295,2]
[399515040,1766424640333,-500.0,0.00015295,2]
[399515041,1766424640343,-250.0,0.00015295,2]
[399515042,1766424640352,-250.0,0.00015295,2]
[399515043,1766424640362,-500.0,0.00015295,2]
[399515044,1766424640371,-250.0,0.00015295,2]
[399515045,1766424640380,-209.40437684,0.00015295,2]
[399515046,1766424640390,-250.0,0.00015295,2]
[399515047,1766424640399,-500.0,0.00015295,2]
[399515048,1766424640408,-250.0,0.00015295,2]
[399515049,1766424640419,-250.0,0.00015295,2]
[399515050,1766424640427,-500.0,0.00015295,2]
[399515051,1766424640437,-250.0,0.00015295,2]
[399515052,1766424640447,-250.0,0.00015295,2]
[399515053,1766424640456,-500.0,0.00015295,2]
[399515054,1766424640465,-250.0,0.00015295,2]
[399515055,1766424640475,-500.0,0.00015295,2]
[399515056,1766424640484,-250.0,0.00015295,2]
[399515057,1766424640494,-250.0,0.00015295,2]
[399515058,1766424640503,-250.0,0.00015295,2]
[399515059,1766424640512,-574.12855637,0.00015295,2]
[399515060,1766424640522,-500.0,0.00015295,2]
[399515061,1766424640531,-250.0,0.00015295,2]
[399515062,1766424640541,-250.0,0.00015295,2]
[399515063,1766424640550,-250.0,0.00015295,2]
[399515064,1766424640559,-500.0,0.00015295,2]
[399515065,1766424640569,-250.0,0.00015295,2]
[399515066,1766424640578,-578.20924308,0.00015295,2]
[399515067,1766424640587,-250.0,0.00015295,2]
[399515068,1766424640597,-500.0,0.00015295,2]
[399515069,1766424640606,-250.0,0.00015295,2]
[399515070,1766424640615,-250.0,0.00015295,2]
[399515071,1766424640624,-250.0,0.00015295,2]
[399515072,1766424640633,-250.0,0.00015295,2]
[399515073,1766424640643,-500.0,0.00015295,2]